fUSD/lending_fUSD_20260506
["ID","MTS","AMOUNT","RATE_DAILY","PERIOD"]
[421712945,1778052732000,-169.04,0.00012481,2]
[421712947,1778052732000,-1118.3416098,0.00012546,2]
[421712946,1778052732000,-1906.6069,0.00012545,2]
[421712942,1778052732000,-2943.95635846,0.00012446,2]
[421712948,1778052732000,-2561.0418819,0.00012546,2]
[421712950,1778052732000,-5000.0,0.00012546,2]
[421712949,1778052732000,-2500.0,0.00012546,2]
[421712951,1778052732000,-800.0000001,0.00012626,2]
[421712952,1778052732000,-219.09451658,0.00012636,2]
[421712957,1778052732000,-624.36253684,0.00012645,2]
[421712953,1778052732000,-150.0,0.00012644,2]
[421712958,1778052732000,-500.0,0.00012645,2]
[421712956,1778052732000,-500.0,0.00012645,2]
[421712960,1778052732000,-338.80614273,0.00012645,2]
[421712954,1778052732000,-500.0,0.00012645,2]
[421712955,1778052732000,-1000.0,0.00012645,2]
[421712963,1778052732000,-500.0,0.00012645,2]
[421712973,1778052732000,-966.28,0.00012735,2]
[421712961,1778052732000,-500.0,0.00012645,2]
[421712972,1778052732000,-2749.762295,0.00012677,2]
[421712969,1778052732000,-5626.75,0.00012658,2]
[421712991,1778052732000,-500.0,0.00013424,2]
[421713001,1778052732000,-508.0372081,0.00013424,2]
[421712994,1778052732000,-500.0,0.00013424,2]
[421713020,1778052732000,-500.0,0.00013424,2]
[421713029,1778052732000,-500.0,0.00013424,2]
[421713026,1778052732000,-500.0,0.00013424,2]
[421713027,1778052732000,-500.0,0.00013424,2]
[421713023,1778052732000,-500.0,0.00013424,2]
[421713028,1778052732000,-500.0,0.00013424,2]
[421713030,1778052732000,-500.0,0.00013424,2]
[421713031,1778052732000,-500.0,0.00013424,2]
[421713022,1778052732000,-500.0,0.00013424,2]
[421713033,1778052732000,-493.40619236,0.00013424,2]
[421713034,1778052732000,-500.0,0.00013424,2]
[421713042,1778052732000,-478.0,0.00013698,2]
[421713043,1778052732000,-500.0,0.00013698,2]
[421713032,1778052732000,-500.0,0.00013424,2]
[421713035,1778052732000,-500.0,0.00013424,2]
[421713040,1778052732000,-1680.0,0.0001369,2]
[421713038,1778052732000,-500.0,0.00013673,2]
[421713039,1778052732000,-164.26479631,0.00013673,2]
[421713037,1778052732000,-2319.72410669,0.00013513,2]
[421713036,1778052732000,-635.42871133,0.00013424,2]
[421713045,1778052732000,-500.0,0.00013698,2]
[421713044,1778052732000,-500.0,0.00013698,2]
[421712987,1778052732000,-521.07,0.0001326,2]
[421713025,1778052732000,-500.0,0.00013424,2]
[421713024,1778052732000,-500.0,0.00013424,2]
[421713041,1778052732000,-500.0,0.00013698,2]
[421713021,1778052732000,-500.0,0.00013424,2]
[421713019,1778052732000,-500.0,0.00013424,2]
[421712997,1778052732000,-500.0,0.00013424,2]
[421712996,1778052732000,-500.0,0.00013424,2]
[421712993,1778052732000,-500.0,0.00013424,2]
[421712992,1778052732000,-500.0,0.00013424,2]
[421712995,1778052732000,-500.0,0.00013424,2]
[421713000,1778052732000,-500.0,0.00013424,2]
[421713005,1778052732000,-500.0,0.00013424,2]
[421713003,1778052732000,-150.0,0.00013424,2]
[421713006,1778052732000,-500.0,0.00013424,2]
[421713004,1778052732000,-500.0,0.00013424,2]
[421713007,1778052732000,-500.0,0.00013424,2]
[421713002,1778052732000,-500.0,0.00013424,2]
[421713014,1778052732000,-500.0,0.00013424,2]
[421713015,1778052732000,-500.0,0.00013424,2]
[421713013,1778052732000,-500.0,0.00013424,2]
[421713009,1778052732000,-500.0,0.00013424,2]
[421713008,1778052732000,-500.0,0.00013424,2]
[421713010,1778052732000,-500.0,0.00013424,2]
[421713012,1778052732000,-500.0,0.00013424,2]
[421713011,1778052732000,-500.0,0.00013424,2]
[421713016,1778052732000,-500.0,0.00013424,2]
[421713018,1778052732000,-500.0,0.00013424,2]
[421713017,1778052732000,-500.0,0.00013424,2]
[421713083,1778052733000,-500.0,0.00013698,2]
[421713072,1778052733000,-500.0,0.00013698,2]
[421713077,1778052733000,-500.0,0.00013698,2]
[421713078,1778052733000,-500.0,0.00013698,2]
[421713074,1778052733000,-500.0,0.00013698,2]
[421713079,1778052733000,-500.0,0.00013698,2]
[421713082,1778052733000,-500.0,0.00013698,2]
[421713081,1778052733000,-500.0,0.00013698,2]
[421713089,1778052733000,-500.0,0.00013698,2]
[421713086,1778052733000,-500.0,0.00013698,2]
[421713087,1778052733000,-500.0,0.00013698,2]
[421713085,1778052733000,-500.0,0.00013698,2]
[421713098,1778052733000,-513.79744774,0.00013698,2]
[421713084,1778052733000,-500.0,0.00013698,2]
[421713090,1778052733000,-500.0,0.00013698,2]
[421713091,1778052733000,-500.0,0.00013698,2]
[421713093,1778052733000,-500.0,0.00013698,2]
[421713103,1778052733000,-500.0,0.00013698,2]
[421713092,1778052733000,-500.0,0.00013698,2]
[421713095,1778052733000,-500.0,0.00013698,2]
[421713094,1778052733000,-529.31246977,0.00013698,2]
[421713097,1778052733000,-500.0,0.00013698,2]
[421713096,1778052733000,-500.0,0.00013698,2]
[421713102,1778052733000,-500.0,0.00013698,2]
[421713080,1778052733000,-377.22125429,0.00013698,2]
[421713088,1778052733000,-500.0,0.00013698,2]
[421713073,1778052733000,-500.0,0.00013698,2]
[421713056,1778052733000,-500.0,0.00013698,2]
[421713071,1778052733000,-500.0,0.00013698,2]
[421713055,1778052733000,-500.0,0.00013698,2]
[421713100,1778052733000,-500.0,0.00013698,2]
[421713047,1778052733000,-500.0,0.00013698,2]
[421713046,1778052733000,-500.0,0.00013698,2]
[421713049,1778052733000,-500.0,0.00013698,2]
[421713050,1778052733000,-500.0,0.00013698,2]
[421713052,1778052733000,-500.0,0.00013698,2]
[421713053,1778052733000,-500.0,0.00013698,2]
[421713054,1778052733000,-500.0,0.00013698,2]
[421713048,1778052733000,-500.0,0.00013698,2]
[421713057,1778052733000,-500.0,0.00013698,2]
[421713059,1778052733000,-500.0,0.00013698,2]
[421713060,1778052733000,-500.0,0.00013698,2]
[421713062,1778052733000,-500.0,0.00013698,2]
[421713061,1778052733000,-500.0,0.00013698,2]
[421713058,1778052733000,-500.0,0.00013698,2]
[421713064,1778052733000,-500.0,0.00013698,2]
[421713066,1778052733000,-500.0,0.00013698,2]
[421713063,1778052733000,-500.0,0.00013698,2]
[421713067,1778052733000,-500.0,0.00013698,2]
[421713068,1778052733000,-500.0,0.00013698,2]
[421713065,1778052733000,-500.0,0.00013698,2]
[421713070,1778052733000,-500.0,0.00013698,2]
[421713069,1778052733000,-500.0,0.00013698,2]
[421713076,1778052733000,-500.0,0.00013698,2]
[421713075,1778052733000,-500.0,0.00013698,2]
[421713099,1778052733000,-544.06732421,0.00013698,2]
[421713051,1778052733000,-500.0,0.00013698,2]
[421713105,1778052733000,-457.26723297,0.00013698,2]
[421713136,1778052733000,-500.0,0.00013698,2]
[421713135,1778052733000,-500.0,0.00013698,2]
[421713134,1778052733000,-500.0,0.00013698,2]
[421713140,1778052733000,-500.0,0.00013698,2]
[421713138,1778052733000,-413.54631548,0.00013698,2]
[421713139,1778052733000,-500.0,0.00013698,2]
[421713142,1778052733000,-500.0,0.00013698,2]
[421713141,1778052733000,-500.0,0.00013698,2]
[421713143,1778052733000,-500.0,0.00013698,2]
[421713147,1778052733000,-500.0,0.00013698,2]
[421713148,1778052733000,-500.0,0.00013698,2]
[421713144,1778052733000,-500.0,0.00013698,2]
[421713132,1778052733000,-500.0,0.00013698,2]
[421713146,1778052733000,-500.0,0.00013698,2]
[421713149,1778052733000,-500.0,0.00013698,2]
[421713158,1778052733000,-166.66,0.00013973,2]
[421713156,1778052733000,-166.66,0.00013836,2]
[421713151,1778052733000,-200.0,0.00013699,2]
[421713153,1778052733000,-2500.0,0.00013699,2]
[421713160,1778052733000,-2405.55389864,0.00014061,2]
[421713152,1778052733000,-166.66,0.00013699,2]
[421713150,1778052733000,-170.35973081,0.00013698,2]
[421713101,1778052733000,-500.0,0.00013698,2]
[421713157,1778052733000,-4936.7156,0.00013944,2]
[421713154,1778052733000,-255.0,0.00013744,2]
[421713159,1778052733000,-250.0,0.00014,2]
[421713145,1778052733000,-500.0,0.00013698,2]
[421713129,1778052733000,-500.0,0.00013698,2]
[421713155,1778052733000,-166.66,0.00013793,2]
[421713127,1778052733000,-500.0,0.00013698,2]
[421713133,1778052733000,-500.0,0.00013698,2]
[421713106,1778052733000,-500.0,0.00013698,2]
[421713107,1778052733000,-500.0,0.00013698,2]
[421713114,1778052733000,-500.0,0.00013698,2]
[421713111,1778052733000,-500.0,0.00013698,2]
[421713108,1778052733000,-500.0,0.00013698,2]
[421713113,1778052733000,-500.0,0.00013698,2]
[421713112,1778052733000,-500.0,0.00013698,2]
[421713109,1778052733000,-500.0,0.00013698,2]
[421713110,1778052733000,-500.0,0.00013698,2]
[421713116,1778052733000,-500.0,0.00013698,2]
[421713115,1778052733000,-500.0,0.00013698,2]
[421713120,1778052733000,-453.32255009,0.00013698,2]
[421713104,1778052733000,-500.0,0.00013698,2]
[421713122,1778052733000,-500.0,0.00013698,2]
[421713118,1778052733000,-500.0,0.00013698,2]
[421713130,1778052733000,-500.0,0.00013698,2]
[421713128,1778052733000,-557.17074173,0.00013698,2]
[421713126,1778052733000,-500.0,0.00013698,2]
[421713124,1778052733000,-500.0,0.00013698,2]
[421713137,1778052733000,-500.0,0.00013698,2]
[421713123,1778052733000,-500.0,0.00013698,2]
[421713117,1778052733000,-500.0,0.00013698,2]
[421713121,1778052733000,-500.0,0.00013698,2]
[421713119,1778052733000,-500.0,0.00013698,2]
[421713125,1778052733000,-500.0,0.00013698,2]
[421713131,1778052733000,-500.0,0.00013698,2]
[421713188,1778052734000,-2073.9690073,0.00015,2]
[421713197,1778052734000,-1000.0,0.00015521,2]
[421713190,1778052734000,-427.32868405,0.00015,2]
[421713189,1778052734000,-3129.04007872,0.00015,2]
[421713186,1778052734000,-219.09451658,0.0001499,2]
[421713191,1778052734000,-2351.0,0.00015058,2]
[421713187,1778052734000,-1699239.48928831,0.00015,2]
[421713195,1778052734000,-2586.85809042,0.00015157,2]
[421713196,1778052734000,-1000.0,0.00015521,2]
[421713194,1778052734000,-347.45,0.000151,2]
[421713200,1778052734000,-2682.57183977,0.00015705,2]
[421713201,1778052734000,-869.21,0.00015799,2]
[421713203,1778052734000,-150.0,0.000159,2]
[421713202,1778052734000,-1118.34160976,0.00015822,2]
[421713204,1778052734000,-966.28,0.00015918,2]
[421713198,1778052734000,-782.82467916,0.00015521,2]
[421713206,1778052734000,-300.0,0.00016,2]
[421713205,1778052734000,-377.29903517,0.0001596,2]
[421713207,1778052734000,-473.52157341,0.00016,2]
[421713215,1778052734000,-150.0,0.00016137,2]
[421713184,1778052734000,-500.0,0.00014973,2]
[421713199,1778052734000,-1007.37555556,0.00015521,2]
[421713185,1778052734000,-163.58,0.00014985,2]
[421713173,1778052734000,-285.18294388,0.000149,2]
[421713192,1778052734000,-900.0,0.00015068,2]
[421713161,1778052734000,-166.66,0.0001411,2]
[421713162,1778052734000,-1118.34160976,0.00014184,2]
[421713164,1778052734000,-869.21,0.00014219,2]
[421713163,1778052734000,-166.66,0.00014195,2]
[421713166,1778052734000,-150.0,0.00014247,21]
[421713170,1778052734000,-2000.0,0.00014421,2]
[421713165,1778052734000,-166.66,0.00014247,2]
[421713169,1778052734000,-166.66,0.00014384,2]
[421713167,1778052734000,-966.28,0.00014326,2]
[421713168,1778052734000,-156.30737109,0.00014346,2]
[421713193,1778052734000,-204.33,0.000151,2]
[421713171,1778052734000,-2494.55939289,0.00014609,2]
[421713182,1778052734000,-500.0,0.00014973,2]
[421713174,1778052734000,-154.99317027,0.000149,2]
[421713176,1778052734000,-433.0,0.00014945,2]
[421713177,1778052734000,-500.0,0.00014973,2]
[421713181,1778052734000,-500.0,0.00014973,2]
[421713172,1778052734000,-8835.66290679,0.000148,2]
[421713175,1778052734000,-3902.16670747,0.000149,2]
[421713178,1778052734000,-500.0,0.00014973,2]
[421713179,1778052734000,-572.63857253,0.00014973,2]
[421713183,1778052734000,-500.0,0.00014973,2]
[421713180,1778052734000,-500.0,0.00014973,2]
[421713211,1778052734000,-250.0,0.00016069,2]
[421713208,1778052734000,-2000.0,0.00016023,2]
[421713212,1778052734000,-473.52157341,0.000161,2]
[421713236,1778052734000,-500.0,0.00016973,2]
[421713237,1778052734000,-500.0,0.00016973,2]
[421713238,1778052734000,-163.68234244,0.00016973,2]
[421713243,1778052734000,-517.65628542,0.00016973,2]
[421713244,1778052734000,-500.0,0.00016973,2]
[421713242,1778052734000,-409.67569187,0.00016973,2]
[421713246,1778052734000,-500.0,0.00016973,2]
[421713245,1778052734000,-500.0,0.00016973,2]
[421713253,1778052734000,-175.80035316,0.00016986,2]
[421713252,1778052734000,-313.910179,0.00016973,2]
[421713250,1778052734000,-500.0,0.00016973,2]
[421713251,1778052734000,-500.0,0.00016973,2]
[421713248,1778052734000,-500.0,0.00016973,2]
[421713249,1778052734000,-500.0,0.00016973,2]
[421713256,1778052734000,-508.58,0.00017063,2]
[421713259,1778052734000,-163.38,0.00017149,2]
[421713254,1778052734000,-743.57107582,0.00016986,2]
[421713255,1778052734000,-374602.19120611,0.00017,2]
[421713257,1778052734000,-4594.432928,0.00017111,2]
[421713258,1778052734000,-163.58,0.00017126,2]
[421713210,1778052734000,-1500.0,0.00016068,2]
[421713231,1778052734000,-150.0,0.00016758,2]
[421713235,1778052734000,-2884.75459676,0.00016801,2]
[421713247,1778052734000,-500.0,0.00016973,2]
[421713229,1778052734000,-150.0,0.00016758,2]
[421713209,1778052734000,-1500.0,0.00016068,2]
[421713233,1778052734000,-150.0,0.00016758,2]
[421713213,1778052734000,-474.47361691,0.0001611,15]
[421713214,1778052734000,-8154.06,0.00016116,2]
[421713217,1778052734000,-736.0,0.00016235,2]
[421713216,1778052734000,-473.52157341,0.000162,2]
[421713218,1778052734000,-2781.82699784,0.00016253,2]
[421713220,1778052734000,-229.62,0.00016438,2]
[421713226,1778052734000,-965.30571079,0.00016616,2]
[421713225,1778052734000,-3292.0,0.00016564,2]
[421713223,1778052734000,-500.0,0.00016438,2]
[421713227,1778052734000,-150.62706686,0.00016616,2]
[421713224,1778052734000,-2561.04188188,0.00016454,2]
[421713234,1778052734000,-263.0,0.00016758,2]
[421713241,1778052734000,-500.0,0.00016973,2]
[421713240,1778052734000,-366.59660479,0.00016973,2]
[421713232,1778052734000,-150.0,0.00016758,2]
[421713230,1778052734000,-150.0,0.00016758,2]
[421713239,1778052734000,-500.0,0.00016973,2]
[421713222,1778052734000,-150.0,0.00016438,2]
[421713219,1778052734000,-2842.0,0.00016438,2]
[421713221,1778052734000,-900.0,0.00016438,2]
[421713228,1778052734000,-199.36,0.00016712,2]
[421713299,1778052735000,-631.17169636,0.000184,2]
[421713286,1778052735000,-350.0,0.00018,2]
[421713292,1778052735000,-501.54617284,0.00018068,2]
[421713291,1778052735000,-1500.0,0.00018068,2]
[421713288,1778052735000,-475.44,0.00018007,2]
[421713293,1778052735000,-1500.0,0.00018068,2]
[421713295,1778052735000,-207.86895535,0.00018108,2]
[421713296,1778052735000,-631.17169636,0.000182,2]
[421713303,1778052735000,-631.17169636,0.000185,2]
[421713301,1778052735000,-185.12673,0.00018424,7]
[421713313,1778052735000,-3352.20605355,0.00018954,2]
[421713298,1778052735000,-475.44,0.00018281,2]
[421713310,1778052735000,-631.17169636,0.000187,2]
[421713297,1778052735000,-4609.0,0.00018221,2]
[421713302,1778052735000,-186.478838,0.00018424,7]
[421713300,1778052735000,-2842.0,0.0001841,2]
[421713305,1778052735000,-475.44,0.00018555,2]
[421713306,1778052735000,-2000.0,0.00018616,2]
[421713304,1778052735000,-163.38,0.00018519,2]
[421713307,1778052735000,-2000.0,0.00018616,2]
[421713308,1778052735000,-2000.0,0.00018616,2]
[421713309,1778052735000,-2000.0,0.00018616,2]
[421713312,1778052735000,-475.47,0.00018829,2]
[421713290,1778052735000,-1500.0,0.00018068,2]
[421713294,1778052735000,-1797.9256457,0.000181,2]
[421713289,1778052735000,-1500.0,0.00018068,2]
[421713266,1778052735000,-1000.0,0.00017521,2]
[421713287,1778052735000,-110617.00103074,0.00018,2]
[421713261,1778052735000,-2991.49051684,0.00017349,2]
[421713263,1778052735000,-267.1856,0.00017428,2]
[421713268,1778052735000,-565.62994908,0.00017521,2]
[421713265,1778052735000,-966.28,0.0001751,2]
[421713260,1778052735000,-51477.474029,0.00017346,2]
[421713262,1778052735000,-869.21,0.00017379,2]
[421713264,1778052735000,-1118.34160976,0.00017461,2]
[421713269,1778052735000,-1000.0,0.00017521,2]
[421713270,1778052735000,-1001.44323485,0.00017521,2]
[421713267,1778052735000,-1117.53083552,0.00017521,2]
[421713272,1778052735000,-1000.0,0.00017521,2]
[421713285,1778052735000,-631.17169636,0.00018,2]
[421713271,1778052735000,-1001.56593355,0.00017521,2]
[421713274,1778052735000,-1000.0,0.00017521,2]
[421713273,1778052735000,-1001.25123235,0.00017521,2]
[421713277,1778052735000,-195.85164586,0.00017521,2]
[421713279,1778052735000,-2000.0,0.00017626,2]
[421713278,1778052735000,-1669.08026706,0.00017522,2]
[421713276,1778052735000,-1000.0,0.00017521,2]
[421713281,1778052735000,-791.29362206,0.000177,2]
[421713280,1778052735000,-1252.0,0.00017651,2]
[421713283,1778052735000,-160.0,0.00017916,2]
[421713284,1778052735000,-162.55277151,0.00017916,2]
[421713282,1778052735000,-475.44,0.00017733,2]
[421713275,1778052735000,-818.00937475,0.00017521,2]
[421713314,1778052735000,-869.21,0.00018959,2]
[421713327,1778052735000,-500.0,0.00019178,2]
[421713316,1778052735000,-966.28,0.00019102,2]
[421713347,1778052735000,-500.0,0.00019482,2]
[421713344,1778052735000,-500.0,0.00019482,2]
[421713346,1778052735000,-500.0,0.00019482,2]
[421713348,1778052735000,-526.04399101,0.00019482,2]
[421713349,1778052735000,-500.0,0.00019482,2]
[421713350,1778052735000,-250.0,0.00019482,2]
[421713352,1778052735000,-250.0,0.00019482,2]
[421713358,1778052735000,-500.0,0.00019568,2]
[421713353,1778052735000,-500.0,0.00019482,2]
[421713355,1778052735000,-500.0,0.00019482,2]
[421713351,1778052735000,-500.0,0.00019482,2]
[421713343,1778052735000,-500.0,0.00019482,2]
[421713354,1778052735000,-250.0,0.00019482,2]
[421713357,1778052735000,-260.05273032,0.00019482,2]
[421713360,1778052735000,-162.59148893,0.00019568,2]
[421713359,1778052735000,-500.0,0.00019568,2]
[421713361,1778052735000,-258.07795954,0.00019568,2]
[421713368,1778052735000,-3564.4215519,0.00019892,2]
[421713366,1778052735000,-1869.28734531,0.00019712,2]
[421713365,1778052735000,-3000.0,0.00019712,2]
[421713363,1778052735000,-3564.4215519,0.00019679,2]
[421713364,1778052735000,-2008.23716968,0.00019712,2]
[421713367,1778052735000,-3564.4215519,0.00019875,2]
[421713311,1778052735000,-137151.08452491,0.000188,2]
[421713356,1778052735000,-509.972563,0.00019482,2]
[421713345,1778052735000,-500.0,0.00019482,2]
[421713362,1778052735000,-500.0,0.00019568,2]
[421713338,1778052735000,-1205.88,0.00019339,2]
[421713342,1778052735000,-500.0,0.00019482,2]
[421713317,1778052735000,-1634.77125774,0.00019164,2]
[421713315,1778052735000,-1118.34160976,0.00019099,2]
[421713318,1778052735000,-2500.0,0.00019164,2]
[421713324,1778052735000,-193.94104199,0.00019178,2]
[421713323,1778052735000,-150.0,0.00019178,2]
[421713320,1778052735000,-2500.0,0.00019164,2]
[421713321,1778052735000,-150.0,0.00019178,2]
[421713322,1778052735000,-150.0,0.00019178,2]
[421713325,1778052735000,-3000.0,0.00019178,2]
[421713326,1778052735000,-500.0,0.00019178,2]
[421713332,1778052735000,-500.0,0.00019178,2]
[421713319,1778052735000,-2500.0,0.00019164,2]
[421713330,1778052735000,-500.0,0.00019178,2]
[421713331,1778052735000,-500.0,0.00019178,2]
[421713340,1778052735000,-500.0,0.00019358,2]
[421713341,1778052735000,-2531.69867932,0.00019435,2]
[421713339,1778052735000,-29091.97,0.00019339,2]
[421713337,1778052735000,-500.0,0.00019338,2]
[421713336,1778052735000,-163.58,0.00019266,2]
[421713334,1778052735000,-2129.0,0.00019194,2]
[421713335,1778052735000,-2000.0,0.00019228,2]
[421713329,1778052735000,-500.0,0.00019178,2]
[421713328,1778052735000,-500.0,0.00019178,2]
[421713333,1778052735000,-11082.87,0.00019178,2]
[421713385,1778052736000,-480.0,0.0002,2]
[421713386,1778052736000,-7067.96587589,0.0002,2]
[421713392,1778052736000,-1443.0,0.0002,2]
[421713391,1778052736000,-4804.0,0.0002,2]
[421713395,1778052736000,-26729.49640884,0.0002,2]
[421713394,1778052736000,-1000.0,0.0002,7]
[421713393,1778052736000,-25877.32509415,0.0002,2]
[421713401,1778052736000,-3385.17092439,0.0002026,2]
[421713400,1778052736000,-310.0,0.00020165,3]
[421713397,1778052736000,-1000.0,0.00020116,2]
[421713398,1778052736000,-1000.0,0.00020116,2]
[421713399,1778052736000,-1000.0,0.00020116,2]
[421713402,1778052736000,-2561.04188188,0.00020361,2]
[421713388,1778052736000,-400.0,0.0002,2]
[421713404,1778052736000,-1000.0,0.00020521,2]
[421713396,1778052736000,-6453.0,0.00020043,2]
[421713390,1778052736000,-162.0,0.0002,2]
[421713379,1778052736000,-497.0,0.0002,2]
[421713387,1778052736000,-195.0,0.0002,2]
[421713407,1778052736000,-1096.48180787,0.00020664,2]
[421713369,1778052736000,-4986.65705926,0.000199,3]
[421713370,1778052736000,-286741.23074955,0.0001995,15]
[421713376,1778052736000,-6171.0,0.0002,2]
[421713374,1778052736000,-500.0,0.00019973,2]
[421713372,1778052736000,-500.0,0.00019973,2]
[421713380,1778052736000,-177.0,0.0002,2]
[421713383,1778052736000,-1176.0,0.0002,2]
[421713375,1778052736000,-5382.5920651,0.00019975,2]
[421713371,1778052736000,-500.14771271,0.00019973,2]
[421713377,1778052736000,-199.06317263,0.0002,2]
[421713378,1778052736000,-8829.0,0.0002,2]
[421713382,1778052736000,-494.0,0.0002,2]
[421713381,1778052736000,-385.0,0.0002,2]
[421713384,1778052736000,-360.0,0.0002,2]
[421713389,1778052736000,-9419.0,0.0002,2]
[421713373,1778052736000,-150.0,0.00019973,2]
[421713403,1778052736000,-2842.0,0.00020381,2]
[421713405,1778052736000,-250.0,0.00020521,2]
[421713442,1778052736000,-2000.0,0.00021093,2]
[421713428,1778052736000,-500.0,0.00020985,2]
[421713429,1778052736000,-502.13953093,0.00020985,2]
[421713432,1778052736000,-385.0,0.00021,2]
[421713435,1778052736000,-360.0,0.00021,2]
[421713433,1778052736000,-494.0,0.00021,2]
[421713436,1778052736000,-480.0,0.00021,2]
[421713431,1778052736000,-177.0,0.00021,2]
[421713426,1778052736000,-1118.34160976,0.00020737,2]
[421713430,1778052736000,-497.0,0.00021,2]
[421713440,1778052736000,-1500.0,0.00021068,2]
[421713439,1778052736000,-1443.0,0.00021,2]
[421713444,1778052736000,-2000.0,0.00021093,2]
[421713438,1778052736000,-162.0,0.00021,2]
[421713443,1778052736000,-2000.0,0.00021093,2]
[421713406,1778052736000,-1075.76826501,0.00020521,2]
[421713441,1778052736000,-350.0,0.00021068,2]
[421713437,1778052736000,-195.0,0.00021,2]
[421713425,1778052736000,-22926.97907708,0.000207,2]
[421713434,1778052736000,-1176.0,0.00021,2]
[421713423,1778052736000,-492.59344334,0.000207,2]
[421713411,1778052736000,-339.1872416,0.000207,2]
[421713408,1778052736000,-1500.0,0.00020664,2]
[421713410,1778052736000,-500.0,0.000207,2]
[421713409,1778052736000,-1536.25927147,0.00020664,2]
[421713424,1778052736000,-500.0,0.000207,2]
[421713413,1778052736000,-500.0,0.000207,2]
[421713415,1778052736000,-529.61366875,0.000207,2]
[421713414,1778052736000,-500.0,0.000207,2]
[421713412,1778052736000,-500.0,0.000207,2]
[421713416,1778052736000,-500.0,0.000207,2]
[421713427,1778052736000,-3620.0,0.00020863,2]
[421713418,1778052736000,-500.0,0.000207,2]
[421713417,1778052736000,-500.0,0.000207,2]
[421713419,1778052736000,-521.03068147,0.000207,2]
[421713421,1778052736000,-500.43861517,0.000207,2]
[421713422,1778052736000,-500.0,0.000207,2]
[421713420,1778052736000,-500.0,0.000207,2]
[421713481,1778052737000,-497.0,0.00022,2]
[421713478,1778052737000,-5000.0,0.00021918,2]
[421713477,1778052737000,-500.0,0.00021917,2]
[421713475,1778052737000,-167.88328684,0.00021796,2]
[421713480,1778052737000,-1000.0,0.00021918,5]
[421713473,1778052737000,-1500.0,0.00021796,2]
[421713470,1778052737000,-1500.0,0.00021796,2]
[421713479,1778052737000,-1000.0,0.00021918,5]
[421713471,1778052737000,-1500.0,0.00021796,2]
[421713476,1778052737000,-1500.0,0.00021796,2]
[421713483,1778052737000,-385.0,0.00022,2]
[421713493,1778052737000,-550.0,0.00022164,2]
[421713482,1778052737000,-177.0,0.00022,2]
[421713484,1778052737000,-494.0,0.00022,2]
[421713485,1778052737000,-1176.0,0.00022,2]
[421713487,1778052737000,-480.0,0.00022,2]
[421713491,1778052737000,-1443.0,0.00022,2]
[421713492,1778052737000,-9035.0,0.00022047,2]
[421713486,1778052737000,-360.0,0.00022,2]
[421713490,1778052737000,-162.0,0.00022,2]
[421713489,1778052737000,-450.0,0.00022,2]
[421713494,1778052737000,-1216.01710541,0.00022344,2]
[421713474,1778052737000,-1500.0,0.00021796,2]
[421713488,1778052737000,-195.0,0.00022,2]
[421713472,1778052737000,-1500.0,0.00021796,2]
[421713448,1778052737000,-2000.0,0.00021093,2]